bitfinex/quotes_ETHUSD_20250810
["timestamp","ask_amount","ask_price","bid_price","bid_amount"]
[1754819769007,17.06487918,4226.2,4226.1,1e-08]
[1754819772277,17.06472645,4226.2,4226.1,1e-08]
[1754819772467,17.06471652,4226.2,4226.1,1e-08]
[1754819773564,17.06571652,4226.2,4226.1,1.03980001]
[1754819774162,17.06571652,4226.2,4226.1,0.44550001]
[1754819775310,17.31771094,4226.2,4226.1,0.44550001]
[1754819775473,19.86971094,4226.2,4226.1,0.44550001]
[1754819775799,23.47371094,4226.2,4226.1,1e-08]
[1754819776017,23.47371094,4226.2,4225.7,0.001]
[1754819776018,5.91641582,4225.8,4225.7,1e-08]
[1754819776164,11.35369773,4225.8,4225.7,1e-08]
[1754819777108,10.37001456,4225.8,4225.7,1.03980001]
[1754819777397,10.50295094,4225.8,4225.7,1.03980001]
[1754819778309,11.35370035,4225.8,4225.7,1.03980001]
[1754819779867,1.83328453,4225.8,4225.7,1.03980001]
[1754819780067,5.97041582,4225.8,4225.7,1.03980001]
[1754819780330,6.48514471,4225.8,4225.7,1.03980001]
[1754819780467,6.70673701,4225.8,4225.7,1e-08]
[1754819780673,7.89500239,4225.8,4225.7,1e-08]
[1754819780882,7.25673701,4225.8,4225.7,1e-08]
[1754819781206,10.25673701,4225.8,4225.7,1e-08]
[1754819782822,10.38972387,4225.8,4225.7,1e-08]
[1754819784893,11.24086032,4225.8,4225.7,1.02050001]
[1754819785117,10.25673701,4225.8,4225.7,1.02050001]
[1754819785423,6.64773701,4225.8,4225.7,1.02050001]
[1754819785595,10.25673701,4225.8,4225.7,1.02050001]
[1754819786520,7.25773701,4225.8,4225.7,1.02050001]
[1754819786911,0.73132119,4225.8,4225.7,1.02050001]
[1754819787101,3.61,4225.8,4225.7,1.02050001]
[1754819787422,3.8315923,4225.8,4225.7,1.02050001]
[1754819787723,4.11972889,4225.8,4225.7,1.02050001]
[1754819788018,6.48614471,4225.8,4225.7,1.02050001]
[1754819789025,4.11972889,4225.8,4225.7,1.02050001]
[1754819789330,3.61,4225.8,4225.7,1.02050001]
[1754819790029,3.7284,4225.8,4225.7,1.02050001]
[1754819794131,3.7304,4225.8,4225.7,1.02050001]
[1754819794493,0.1204,4225.8,4225.7,1.02050001]
[1754819794712,3.7274,4225.8,4225.7,1.02050001]
[1754819795813,6.09381582,4225.8,4225.7,1.02050001]
[1754819796514,3.7274,4225.8,4225.7,1.02050001]
[1754819799128,0.1204,4225.8,4225.7,1.02050001]
[1754819799329,3.7254,4225.8,4225.7,3.72978318]
[1754819800834,3.7254,4225.8,4225.7,1.36331136]
[1754819802230,0.1204,4225.8,4225.7,1.02050001]
[1754819802416,3.7254,4225.8,4225.7,1.02050001]
[1754819802612,3.7254,4225.8,4225.7,1e-08]
[1754819802817,6.09181582,4225.8,4225.7,1e-08]
[1754819803234,6.09181582,4225.8,4225.7,1.02050001]
[1754819803235,0.002,4225.8,4225.7,1.02050001]
[1754819803434,3.607,4225.8,4225.7,1.02050001]
[1754819806243,3.607,4225.8,4225.7,1e-08]
[1754819809139,3.607,4225.8,4225.7,0.99110001]
[1754819809442,0.002,4225.8,4225.7,3.35757183]
[1754819809615,3.606,4225.8,4225.7,3.69743969]
[1754819810629,0.002,4225.8,4225.7,3.7211044]
[1754819810820,3.607,4225.8,4225.7,3.69743969]
[1754819811021,0.002,4225.8,4225.7,3.69743969]
[1754819813240,0.1204,4225.8,4225.7,3.69743969]
[1754819813740,3.7264,4225.8,4225.7,3.7211044]
[1754819814117,3.608,4225.8,4225.7,3.7211044]
[1754819814320,0.002,4225.8,4225.7,3.7211044]
[1754819814640,0.002,4225.8,4225.7,3.69743969]
[1754819815241,3.608,4225.8,4225.7,3.69743969]
[1754819820439,3.608,4225.8,4225.7,3.15443969]
[1754819820641,3.608,4225.8,4225.7,1e-08]
[1754819820844,3.608,4225.8,4225.7,2.36647183]
[1754819821355,3.608,4225.8,4225.7,1e-08]
[1754819822969,3.608,4225.8,4225.7,2.36647183]
[1754819823121,3.605,4225.8,4225.7,2.81457183]
[1754819823323,3.605,4225.8,4225.7,1e-08]
[1754819823749,0.002,4225.8,4225.7,1e-08]
[1754819823958,3.605,4225.8,4225.7,1e-08]
[1754819828022,3.7234,4225.8,4225.7,3.35757183]
[1754819828223,3.7234,4225.8,4225.7,3.93645138]
[1754819829546,0.1204,4225.8,4225.7,3.93645138]
[1754819829857,3.7234,4225.8,4225.7,3.93645138]
[1754819830050,3.7234,4225.8,4225.7,3.96011609]
[1754819830252,3.605,4225.8,4225.7,3.96011609]
[1754819830724,0.002,4225.8,4225.7,3.96011609]
[1754819830921,0.002,4225.8,4225.7,7.07851609]
[1754819831153,0.002,4225.8,4225.7,7.05485138]
[1754819842876,0.002,4225.8,4225.7,7.30435138]
[1754819843449,1e-08,4225.8,4225.7,10.90735138]
[1754819844941,1e-08,4226.1,4226.0,2.36630383]
[1754819845254,1e-08,4226.1,4226.0,6.93030709]
[1754819845457,1e-08,4226.1,4226.0,8.06700709]
[1754819846276,1e-08,4226.1,4226.0,8.16171809]
[1754819864400,1e-08,4226.3,4226.2,2.36619185]
[1754819864566,1e-08,4226.3,4226.2,2.38985376]
[1754819864767,0.002,4227.0,4226.9,2.36579999]
[1754819866188,0.444,4227.0,4226.9,2.36579999]
[1754819869099,1.0113,4227.0,4226.9,2.36579999]
[1754819870511,0.002,4227.0,4226.9,2.36579999]
[1754819873645,1e-08,4227.0,4226.9,6.37979999]
[1754819873804,1e-08,4227.0,4226.9,7.93577701]
[1754819875334,1e-08,4227.0,4226.9,8.03047201]
[1754819883442,0.002,4227.2,4227.1,2.36568806]
[1754819883607,0.002,4227.2,4227.1,2.38934494]
[1754819883805,0.002,4227.2,4227.1,6.52174494]
[1754819884008,0.002,4227.2,4227.1,8.20253466]
[1754819884543,0.002,4227.2,4227.1,7.18853466]
[1754819885806,0.002,4227.2,4227.1,8.20253466]
[1754819887541,0.002,4227.2,4227.1,7.63863466]
[1754819887748,0.002,4227.2,4227.1,7.18853466]
[1754819892846,0.002,4227.2,4227.1,7.63863466]
[1754819893044,0.002,4227.2,4227.1,8.20253466]
[1754819895453,0.002,4227.2,4227.1,7.18853466]
[1754819896350,0.002,4227.2,4227.1,5.48408806]
[1754819904957,0.002,4227.2,4227.1,6.47058806]
[1754819906240,0.002,4227.2,4227.1,5.94168806]
[1754819906956,0.002,4227.2,4227.1,5.48408806]
[1754819909951,0.002,4227.2,4227.1,5.94168806]
[1754819910254,0.002,4227.2,4227.1,7.19469027]
[1754819911957,0.002,4227.2,4227.1,7.72359027]
[1754819915871,0.002,4227.2,4227.1,7.19469027]
[1754819916065,0.002,4227.2,4227.1,6.73709027]
[1754819916677,0.002,4227.2,4227.1,5.48408806]
[1754819916848,0.9494,4227.2,4227.1,5.36568806]
[1754819917350,0.9494,4227.2,4227.0,2.3657348]
[1754819917549,0.002,4227.2,4227.0,2.3657348]
[1754819917861,0.9474,4227.1,4227.0,2.3657348]
[1754819918682,0.9474,4227.1,4227.0,2.36574402]
[1754819923149,0.9474,4227.1,4226.6,2.36692311]
[1754819923150,0.9474,4227.1,4226.6,0.001]
[1754819923346,0.1184,4226.7,4226.6,2.36696791]
[1754819923647,1.0658,4226.7,4226.6,2.36696791]
[1754819924982,1.0658,4226.7,4226.6,0.001]
[1754819925278,1.0658,4226.7,4226.6,2.36696791]
[1754819929484,1.0616,4226.7,4226.6,0.001]
[1754819931798,0.1184,4226.7,4226.6,2.36696791]
[1754819935201,0.1184,4226.7,4226.6,2.93703223]
[1754819935405,0.002,4227.2,4227.1,2.36568806]
[1754819935905,0.002,4227.2,4227.1,3.33128806]
[1754819935906,0.1204,4227.2,4227.1,3.33128806]
[1754819937399,0.1204,4227.2,4227.1,2.36568806]
[1754819939000,0.7204,4227.2,4227.1,2.36568806]
[1754819939402,0.7204,4227.2,4227.1,2.81888806]
[1754819939572,0.7204,4227.2,4227.1,3.33128806]
[1754819940210,0.602,4227.2,4227.1,3.90335894]
[1754819940584,0.002,4227.2,4227.1,3.90335894]
[1754819941708,0.002,4227.2,4227.1,3.92701582]
[1754819942784,0.002,4227.2,4227.1,3.90335894]
[1754819943286,0.002,4227.2,4227.1,2.93775894]
[1754819943978,0.002,4227.2,4227.1,3.39095894]
[1754819947016,0.002,4227.2,4227.1,2.93775894]
[1754819947986,0.002,4227.2,4227.1,3.39095894]
[1754819948317,0.002,4227.2,4227.1,2.93775894]
[1754819948717,0.002,4227.2,4227.1,3.39095894]
[1754819953124,0.002,4227.2,4227.1,3.90335894]
[1754819961426,0.002,4227.2,4227.1,2.93775894]
[1754819967136,0.002,4227.2,4227.1,2.93875894]
[1754819967508,0.002,4227.2,4227.1,3.89505894]
[1754819971941,0.002,4227.2,4227.1,4.01345894]
[1754819973118,0.002,4227.2,4227.1,7.01345894]
[1754819976921,0.002,4227.2,4227.1,6.05715894]
[1754819977121,0.002,4227.2,4227.1,5.48508806]
[1754819981456,0.002,4227.2,4227.1,2.48508806]
[1754819988668,0.002,4227.2,4227.1,3.43398806]
[1754819992535,0.002,4227.2,4227.1,2.92398806]
[1754819993969,0.002,4227.2,4227.1,2.48508806]
[1754819998776,0.002,4227.2,4227.1,2.36668806]
[1754820000975,0.002,4227.2,4227.1,3.33924494]
[1754820001292,0.002,4227.2,4227.1,4.59292576]
[1754820001494,0.002,4227.2,4227.1,2.36668806]
[1754820001847,0.475,4227.2,4227.1,2.36668806]
[1754820002085,0.475,4227.2,4227.1,0.001]
[1754820002086,0.982,4227.2,4227.1,0.001]
[1754820002377,0.5934,4227.2,4227.1,2.36668806]
[1754820002552,0.1204,4227.2,4227.1,2.36668806]
[1754820003047,1.1004,4227.2,4227.1,0.001]
[1754820003645,3.46603209,4227.2,4227.1,0.001]
[1754820004170,1.1004,4227.2,4227.1,0.001]
[1754820004539,4.6924,4227.2,4227.1,0.001]
[1754820005148,4.6924,4227.2,4227.1,2.36668806]
[1754820005776,5.2924,4227.2,4227.1,2.36668806]
[1754820006174,4.7854,4227.2,4227.1,2.36668806]
[1754820006471,5.2924,4227.2,4227.1,0.001]
[1754820006959,1.7004,4227.2,4227.1,0.001]
[1754820007160,4.7854,4227.2,4227.1,0.001]
[1754820007567,5.2924,4227.2,4227.1,0.001]
[1754820009085,4.7854,4227.2,4227.1,0.001]
[1754820009449,4.7854,4227.2,4227.1,2.36668806]
[1754820009450,0.7204,4227.2,4227.1,2.36668806]
[1754820009661,4.3124,4227.2,4227.1,3.31558806]
[1754820010370,0.7204,4227.2,4227.1,3.90738315]
[1754820010767,0.1204,4227.2,4227.1,3.90738315]
[1754820010974,0.002,4227.2,4227.1,4.02578315]
[1754820013152,0.002,4227.2,4227.1,4.00212627]
[1754820013753,0.002,4227.2,4227.1,2.36668806]
[1754820013949,0.1204,4227.2,4227.1,2.36668806]
[1754820014148,1.1004,4227.2,4227.1,2.36668806]
[1754820014352,0.1204,4227.2,4227.1,2.36668806]
[1754820017184,0.002,4227.2,4227.1,3.31558806]
[1754820017385,0.002,4227.2,4227.1,3.93358943]
[1754820018388,0.002,4227.2,4227.1,3.42358943]
[1754820018785,0.002,4227.2,4227.1,3.93524631]
[1754820020193,0.002,4227.2,4227.1,3.91158943]
[1754820020378,0.002,4227.2,4227.1,2.98468943]
[1754820020588,0.002,4227.2,4227.1,2.36668806]
[1754820021085,0.4471,4227.2,4227.1,2.36668806]
[1754820021968,0.002,4227.2,4227.1,2.36668806]
[1754820022968,0.002,4227.2,4227.1,2.80228806]
[1754820023206,0.002,4227.2,4227.1,2.36668806]
[1754820025213,0.002,4227.2,4227.1,0.001]
[1754820025416,0.9571,4227.2,4227.1,0.001]
[1754820025704,3.32273209,4227.2,4227.1,0.001]
[1754820026272,0.9571,4227.2,4227.1,0.001]
[1754820026694,3.32273209,4227.2,4227.1,0.001]
[1754820032109,3.87273209,4227.2,4227.1,0.001]
[1754820032309,13.02573209,4227.2,4227.1,0.001]
[1754820032514,13.53526463,4227.2,4227.1,0.001]
[1754820034412,13.02573209,4227.2,4227.1,0.001]
[1754820034813,13.53500255,4227.2,4227.1,0.001]
[1754820034984,13.21836255,4227.2,4227.1,0.001]
[1754820035185,12.70909209,4227.2,4227.1,0.001]
[1754820035716,13.21822927,4227.2,4227.1,0.001]
[1754820036022,13.21825736,4227.2,4227.1,0.001]
[1754820038721,13.43905288,4227.2,4227.1,0.001]
[1754820039503,13.60173062,4227.2,4227.1,0.001]
[1754820039818,13.60173062,4227.2,4227.1,1e-08]
[1754820039819,20.16372279,4227.2,4227.1,1e-08]
[1754820040421,19.94292727,4227.2,4227.1,1e-08]
[1754820041391,20.16353635,4227.2,4227.1,1e-08]
[1754820042328,20.16353337,4227.2,4227.1,1e-08]
[1754820042496,19.94292727,4227.2,4227.1,1e-08]
[1754820042696,20.16353281,4227.2,4227.1,1e-08]
[1754820042898,19.94292727,4227.2,4227.1,1e-08]
[1754820043101,23.53492727,4227.2,4227.1,1e-08]
[1754820043311,19.94292727,4227.2,4227.1,1e-08]
[1754820043516,23.53492727,4227.2,4227.1,1e-08]
[1754820043700,16.9729351,4227.2,4227.1,1e-08]
[1754820046328,17.19352478,4227.2,4227.1,1e-08]
[1754820047109,14.39106478,4227.2,4227.1,1e-08]
[1754820047307,5.91613586,4226.3,4226.1,0.001]
[1754820047628,10.01730113,4226.3,4226.1,0.001]
[1754820048031,2.36619185,4226.2,4226.1,0.001]
[1754820048213,4.72096527,4226.2,4225.6,0.041]
[1754820048413,3.55,4225.9,4225.6,0.041]
[1754820048735,5.91641582,4225.8,4225.6,0.041]
[1754820048922,6.42558109,4225.8,4225.6,0.041]
[1754820049126,5.91647182,4225.7,4225.6,1e-08]
[1754820049305,10.49163709,4225.7,4225.6,1e-08]
[1754820049734,6.89963709,4225.7,4225.6,1e-08]
[1754820049934,10.49163709,4225.7,4225.6,1e-08]
[1754820051629,10.01763709,4225.7,4225.6,1e-08]
[1754820052437,10.49163709,4225.7,4225.6,1e-08]
[1754820053306,10.89603709,4225.7,4225.6,1e-08]
[1754820054027,0.55,4225.4,4224.6,0.04]
[1754820054338,2.36703197,4224.7,4224.6,0.04]
[1754820054507,15.66603197,4224.7,4224.6,1e-08]
[1754820054709,16.17410882,4224.7,4224.6,1e-08]
[1754820056340,2.91759239,4223.7,4223.6,0.04]
[1754820056519,2.91759239,4223.7,4223.6,0.5055]
[1754820056520,9.51059239,4223.7,4223.6,0.5055]
[1754820057237,7.143,4223.7,4223.6,0.5055]
[1754820057562,9.62899239,4223.7,4223.6,0.5055]
[1754820058208,9.62899239,4223.7,4223.6,0.9606]
[1754820058856,6.7114,4223.7,4223.6,0.9606]
[1754820059144,7.2614,4223.7,4223.6,0.04]
[1754820059323,7.2614,4223.7,4223.6,0.9606]
[1754820059324,6.7114,4223.7,4223.6,0.9606]
[1754820059529,3.7114,4223.7,4223.6,0.9606]
[1754820060220,6.07899239,4223.7,4223.6,0.9606]
[1754820060750,3.7114,4223.7,4223.6,0.9606]
[1754820061121,6.07999239,4223.7,4223.6,0.9606]
[1754820061651,3.7124,4223.7,4223.6,0.9606]
[1754820061829,0.1184,4223.7,4223.6,0.9606]
[1754820062149,3.7124,4223.7,4223.6,3.32824845]
[1754820062553,0.1184,4223.7,4223.6,3.32824845]
[1754820062718,3.7124,4223.7,4223.6,3.32824845]
[1754820062918,3.7124,4223.7,4223.6,0.9606]
[1754820064624,0.1184,4223.7,4223.6,0.9606]
[1754820064834,3.7124,4223.7,4223.6,0.9606]
[1754820065852,3.7124,4223.7,4223.6,3.32824845]
[1754820066469,3.7124,4223.7,4223.6,0.9606]
[1754820068932,0.1184,4223.7,4223.6,0.9606]
[1754820069134,3.7124,4223.7,4223.6,0.9606]
[1754820069557,0.1184,4223.7,4223.6,3.32824845]
[1754820069857,3.7124,4223.7,4223.6,3.66117329]
[1754820070225,6.156,4224.7,4224.3,2.3672486]
[1754820070554,0.1184,4224.0,4223.9,2.36748029]
[1754820070729,3.7124,4224.0,4223.9,2.36748029]
[1754820070930,3.7124,4224.0,4223.9,3.28808029]
[1754820071234,3.7124,4224.0,4223.9,0.9206]
[1754820071439,3.7124,4224.0,4223.6,3.32824367]
[1754820071648,3.7124,4224.0,4223.7,0.9206]
[1754820071825,3.594,4224.0,4223.7,0.9206]
[1754820072025,0.1184,4223.8,4223.7,2.36759239]
[1754820072260,3.7144,4223.8,4223.7,2.60835163]
[1754820072641,3.7144,4223.8,4223.7,3.52895163]
[1754820073158,0.1184,4223.8,4223.7,3.52895163]
[1754820073341,3.7144,4223.8,4223.7,3.52895163]
[1754820074048,0.1184,4223.8,4223.7,3.52895163]
[1754820074248,3.7144,4223.8,4223.7,3.52895163]
[1754820074963,3.7144,4223.8,4223.7,1.16135924]
[1754820075131,3.7144,4223.8,4223.7,0.9206]
[1754820075329,3.7144,4223.8,4223.7,3.28819239]
[1754820078564,3.7144,4223.8,4223.6,0.04]
[1754820079070,3.7144,4223.8,4223.6,0.9921]
[1754820079656,3.7144,4223.8,4223.7,2.36759239]
[1754820079966,3.7144,4223.8,4223.7,3.31969239]
[1754820081846,0.1184,4223.8,4223.7,3.31969239]
[1754820082174,3.7124,4223.8,4223.7,3.89243175]
[1754820082565,3.7124,4223.8,4223.7,3.31969239]
[1754820083876,0.1184,4223.8,4223.7,3.31969239]
[1754820084044,3.7124,4223.8,4223.7,3.31969239]
[1754820085356,0.1184,4223.8,4223.7,3.31969239]
[1754820085570,3.7124,4223.8,4223.7,3.31969239]
[1754820086445,0.1184,4223.8,4223.7,3.81979706]
[1754820086680,6.158,4224.7,4223.7,3.81979706]
[1754820086681,0.1184,4224.3,4223.9,2.36744017]
[1754820086980,0.1184,4224.6,4224.5,2.36714404]
[1754820087146,0.002,4224.7,4224.6,2.367088]
[1754820087679,0.002,4224.7,4224.6,3.319188]
[1754820087862,0.002,4224.7,4224.6,3.34285888]
[1754820088468,0.002,4224.7,4224.6,3.319188]
[1754820088662,0.002,4224.7,4224.6,4.1878212]
[1754820092492,0.002,4224.7,4224.6,4.21149208]
[1754820096976,0.002,4224.7,4224.6,7.80449208]
[1754820097182,0.002,4224.7,4224.6,7.7808212]
[1754820098724,1e-08,4224.7,4224.6,7.7808212]
[1754820098922,1e-08,4224.7,4224.6,10.7808212]
[1754820100999,1e-08,4225.1,4225.0,2.3668639]
[1754820101198,1e-08,4225.1,4225.0,6.85164409]
[1754820101405,1e-08,4225.1,4225.0,7.80374409]
[1754820102422,1e-08,4225.2,4225.1,2.36680788]
[1754820102623,1e-08,4225.2,4225.1,2.39047595]
[1754820102821,1e-08,4225.2,4225.1,4.50348175]
[1754820103288,1e-08,4225.2,4225.1,4.47981368]
[1754820103491,0.1184,4225.8,4225.1,4.47981368]
[1754820103492,0.002,4226.0,4225.9,2.36635982]
[1754820103812,0.002,4226.0,4225.9,5.98202341]
[1754820104014,0.04,4226.9,4226.8,2.36585596]
[1754820105633,0.9705,4226.9,4225.6,3.592]
[1754820105918,0.1184,4226.4,4226.3,2.36613586]
[1754820106411,0.5079,4226.9,4226.7,2.36587864]
[1754820106621,0.04,4226.9,4226.3,0.02366135]
[1754820106801,0.1184,4226.8,4226.7,2.36591194]
[1754820107583,0.04,4226.9,4226.8,2.36585596]
[1754820107781,0.04,4226.9,4226.8,2.82325596]
[1754820107982,0.04,4226.9,4226.8,2.84691451]
[1754820108219,0.04,4226.9,4226.8,2.36585596]
[1754820110451,1.0951,4226.9,4226.8,2.36585596]
[1754820110589,1.0951,4226.9,4226.1,0.1204]
[1754820110914,0.9367,4226.8,4226.6,2.36596483]
[1754820111116,0.9367,4226.7,4226.5,2.36601014]
[1754820111285,1.0551,4226.6,4226.5,2.36601014]
[1754820111489,1.0551,4226.6,4226.4,2.36607581]
[1754820111687,0.9367,4226.5,4226.4,2.36607581]
[1754820112120,0.1184,4226.6,4226.5,2.36602389]
[1754820112636,0.6149,4226.6,4226.5,2.36602389]
[1754820112933,1.0551,4226.6,4226.5,2.36602389]
[1754820116101,1.0551,4226.6,4225.8,3.1184]
[1754820116304,1.0551,4226.6,4225.8,4.18981543]
[1754820116730,1.0551,4226.6,4226.3,2.36609835]
[1754820116923,0.1184,4226.6,4226.3,2.36609835]
[1754820117101,0.9367,4226.5,4226.3,2.36609835]
[1754820117428,0.4402,4226.4,4226.3,2.36609835]
[1754820117803,0.1184,4226.6,4226.5,2.36602389]
[1754820118212,0.5586,4226.6,4226.5,2.36602389]
[1754820119436,0.5586,4226.6,4226.4,2.3660654]
[1754820119604,0.4402,4226.5,4226.4,2.3660654]
[1754820119804,0.4402,4226.5,4226.3,2.36612743]
[1754820120131,0.4402,4226.5,4226.0,0.001]
[1754820120338,0.4402,4226.5,4226.4,2.36607987]
[1754820121347,0.4402,4226.5,4226.3,2.36612755]
[1754820121544,0.1184,4226.6,4226.3,2.36612755]
[1754820121747,0.4402,4226.4,4226.3,2.36612755]
[1754820121957,0.4402,4226.4,4226.0,0.001]
[1754820122103,0.4402,4226.3,4226.0,0.001]
[1754820122450,3.6,4226.7,4226.0,0.001]
[1754820122451,0.1184,4226.2,4226.1,3.2810302]
[1754820122652,0.1184,4226.2,4226.1,3.84586786]
[1754820123635,0.1184,4226.6,4226.1,6.86953524]
[1754820123835,0.1184,4226.6,4226.5,2.36602389]
[1754820125932,0.5586,4226.6,4226.4,2.36607172]
[1754820126126,0.4402,4226.5,4226.4,2.36607172]
[1754820126440,0.4402,4226.5,4226.0,0.1194]
[1754820126644,0.9367,4226.4,4226.0,0.1194]
[1754820126809,0.9367,4226.3,4226.0,0.1194]
[1754820127010,3.30290728,4226.2,4226.0,0.001]
[1754820127210,6.08164784,4226.1,4226.0,0.001]
[1754820127538,7.01834784,4226.1,4226.0,0.001]
[1754820128026,10.01834784,4226.1,4226.0,0.001]
[1754820130143,9.52184784,4226.1,4226.0,0.001]
[1754820130347,10.01834784,4226.1,4226.0,0.001]
[1754820130546,7.6521,4226.1,4226.0,0.001]
[1754820130780,7.1556,4226.1,4226.0,0.001]
[1754820130933,6.7154,4226.1,4226.0,0.001]
[1754820131121,3.7154,4226.1,4226.0,0.001]
[1754820132517,0.1184,4226.1,4226.0,0.001]
[1754820132854,3.7214,4226.1,4226.0,0.001]
[1754820133634,3.7214,4226.1,4226.0,2.36730383]
[1754820134362,3.7214,4226.1,4226.0,3.28210383]
[1754820134562,3.7214,4226.1,4226.0,2.36730383]
[1754820135534,3.7214,4226.1,4226.0,0.001]
[1754820135879,3.7214,4226.1,4226.0,2.36730383]
[1754820136359,3.7214,4226.1,4226.0,0.001]
[1754820136870,3.7214,4226.1,4226.0,2.36730383]
[1754820137868,0.1184,4226.1,4226.0,3.33530383]
[1754820138084,0.1184,4226.1,4226.0,3.90784087]
[1754820138304,3.601,4226.2,4226.1,2.36624784]
[1754820138575,3.601,4226.2,4226.1,3.33424784]
[1754820141657,3.601,4226.2,4226.1,2.36624784]
[1754820142657,3.601,4226.2,4226.1,3.33424784]
[1754820142855,3.601,4226.2,4226.1,3.61138964]
[1754820143051,0.1184,4226.4,4226.3,2.36613586]
[1754820143257,3.7194,4226.4,4226.3,2.36613586]
[1754820143489,3.7194,4226.4,4226.3,3.33413586]
[1754820145294,3.601,4226.4,4226.3,3.33413586]
[1754820145467,3.601,4226.4,4226.3,3.93198841]
[1754820146359,0.1204,4226.6,4226.5,2.36602389]
[1754820146758,0.002,4226.6,4226.5,3.33402389]
[1754820147373,0.002,4226.6,4226.5,3.35768412]
[1754820147685,0.002,4226.6,4226.5,3.33402389]
[1754820147863,0.002,4226.6,4226.5,3.97566512]
[1754820150470,0.002,4226.6,4226.5,2.36602389]
[1754820152588,0.4699,4226.6,4226.5,2.36602389]
[1754820153004,0.002,4226.6,4226.5,2.36602389]
[1754820153165,0.4699,4226.6,4226.5,2.36602389]
[1754820153355,0.9225,4226.6,4226.5,2.36602389]
[1754820153557,0.9225,4226.6,4226.0,2.3672989]
[1754820154271,0.4679,4226.5,4226.0,0.001]
[1754820154472,0.9205,4226.5,4226.0,0.001]
[1754820155012,3.2866065,4226.4,4226.0,0.001]
[1754820155163,5.96716273,4226.3,4226.0,0.001]
[1754820155483,0.002,4226.6,4226.0,0.001]
[1754820155667,3.601,4226.5,4226.0,0.001]
[1754820155861,4.0689,4226.5,4226.0,0.001]
[1754820156061,0.4679,4226.4,4226.0,0.001]
[1754820156262,3.601,4226.3,4226.0,0.001]
[1754820156459,0.4526,4226.5,4226.0,0.001]
[1754820156689,3.601,4226.4,4226.0,0.001]
[1754820156876,4.0689,4226.4,4226.0,0.001]
[1754820157096,3.601,4226.4,4226.0,0.001]
[1754820157282,0.4679,4226.3,4226.0,0.001]
[1754820157485,0.9205,4226.3,4226.0,0.001]
[1754820157803,0.9205,4226.2,4226.0,0.001]
[1754820158404,0.5863,4226.1,4226.0,0.001]
[1754820162016,0.5883,4226.1,4226.0,0.001]
[1754820163119,0.1204,4226.1,4226.0,0.001]
[1754820164812,0.1204,4226.1,4226.0,2.36730383]
[1754820165011,0.1204,4226.1,4226.0,0.001]
[1754820167213,0.5883,4226.1,4226.0,0.001]
[1754820168100,0.1204,4226.1,4226.0,0.001]
[1754820168982,0.5514,4226.1,4226.0,0.001]
[1754820171217,3.37564784,4226.1,4226.0,0.001]
[1754820171734,6.37564784,4226.1,4226.0,0.001]
[1754820171890,6.92564784,4226.1,4226.0,0.001]
[1754820172094,7.43538601,4226.1,4226.0,0.001]
[1754820172295,7.43538601,4226.1,4226.0,1e-08]
[1754820172496,7.65654599,4226.1,4226.0,1e-08]
[1754820173508,11.25554599,4226.1,4226.0,1e-08]
[1754820173703,11.03438601,4226.1,4226.0,1e-08]
[1754820179613,6.97738601,4226.1,4226.0,1e-08]
[1754820179816,3.54638601,4226.1,4226.0,1e-08]
[1754820180037,6.63364784,4226.1,4226.0,1e-08]
[1754820180237,9.08364784,4226.1,4226.0,1e-08]
[1754820180438,9.08464784,4226.1,4226.0,1e-08]
[1754820181943,6.7184,4226.1,4226.0,1e-08]
[1754820182437,9.08464784,4226.1,4226.0,1e-08]
[1754820184232,6.7184,4226.1,4226.0,1e-08]
[1754820185651,9.08464784,4226.1,4226.0,1e-08]
[1754820185951,6.7184,4226.1,4226.0,1e-08]
[1754820186807,0.1204,4226.1,4226.0,3.30440384]
[1754820187014,3.7174,4226.1,4226.0,3.30440384]
[1754820187230,0.1204,4226.1,4226.0,3.30440384]
[1754820187546,3.7174,4226.1,4226.0,3.87148561]
[1754820189237,0.1204,4226.1,4226.0,3.87148561]
[1754820189414,3.7174,4226.1,4226.0,3.87148561]
[1754820189835,3.599,4226.1,4226.0,3.87148561]
[1754820190433,0.002,4226.1,4226.0,3.87148561]
[1754820190610,0.002,4226.1,4226.0,4.01354864]
[1754820191022,3.5966,4226.3,4226.2,2.36619185]
[1754820191240,3.5966,4226.3,4226.2,3.9422659]
[1754820192845,3.7164,4226.6,4226.5,2.36602389]
[1754820193221,3.7164,4226.6,4226.5,3.30412389]
[1754820194552,0.1204,4226.6,4226.5,3.30412389]
[1754820198424,0.1204,4226.6,4226.2,0.63797405]
[1754820198629,0.5655,4226.6,4226.5,2.36602389]
[1754820198850,0.002,4226.6,4226.5,2.36602389]
[1754820199129,0.002,4226.6,4226.0,1e-08]
[1754820199130,0.1204,4226.6,4226.0,1e-08]
[1754820199429,0.1204,4226.6,4226.5,2.36602389]
[1754820199430,0.002,4226.6,4226.5,2.36602389]
[1754820200652,0.1204,4226.6,4226.5,2.36602389]
[1754820201043,3.7144,4226.6,4226.5,3.30932389]
[1754820203966,3.7134,4226.6,4226.5,3.30932389]
[1754820205466,3.7134,4226.6,4226.5,2.36602389]
[1754820206036,3.7134,4226.6,4226.4,2.36607987]
[1754820206241,4.1585,4226.6,4226.5,2.36602389]
[1754820206459,4.1585,4226.6,4226.4,2.36607777]
[1754820206659,3.7134,4226.6,4226.5,2.36602389]
[1754820208138,3.7134,4226.6,4226.4,2.36606543]
[1754820208439,3.7134,4226.6,4226.5,2.36602389]
[1754820212694,3.7134,4226.6,4226.3,2.36711804]
[1754820212695,4.1585,4226.6,4226.4,2.36607429]
[1754820212892,0.4451,4226.5,4226.3,0.001]
[1754820213093,0.9289,4226.5,4226.3,0.001]
[1754820213278,0.4838,4226.4,4226.3,0.001]